fUST/lending_fUST_20250709
["ID","MTS","AMOUNT","RATE_DAILY","PERIOD"]
[370517328,1752052270016,-710.02,0.00021369,2]
[370517329,1752052270026,-460.0,0.00021369,2]
[370517330,1752052270036,-460.0,0.00021369,2]
[370517331,1752052270046,-460.0,0.00021369,2]
[370517332,1752052270056,-460.0,0.00021369,2]
[370517333,1752052270066,-460.0,0.00021369,2]
[370517334,1752052270075,-460.0,0.00021369,2]
[370517335,1752052270085,-460.0,0.00021369,2]
[370517336,1752052270095,-460.0,0.00021369,2]
[370517337,1752052270105,-271.69,0.00021369,2]
[370517338,1752052270119,-460.0,0.00021369,2]
[370517339,1752052270129,-460.0,0.00021369,2]
[370517340,1752052270138,-460.0,0.00021369,2]
[370517341,1752052270148,-248.96,0.00021369,2]
[370517342,1752052270157,-222.26566888,0.00021369,2]
[370517343,1752052270167,-460.0,0.00021369,2]
[370517344,1752052270177,-460.0,0.00021369,2]
[370517345,1752052270187,-4516.91,0.00021369,2]
[370517346,1752052270196,-460.0,0.00021369,2]
[370517347,1752052270205,-460.0,0.00021369,2]
[370517348,1752052270215,-460.0,0.00021369,2]
[370517349,1752052270224,-460.0,0.00021369,2]
[370517350,1752052270241,-955.05,0.00021369,2]
[370517351,1752052270250,-460.0,0.00021369,2]
[370517352,1752052270259,-1203.3,0.00021369,2]
[370517353,1752052270269,-1089.2,0.00021369,2]
[370517354,1752052270278,-460.0,0.00021369,2]
[370517355,1752052270287,-460.0,0.00021369,2]
[370517356,1752052270297,-1991.73,0.00021369,2]
[370517357,1752052270306,-531.8,0.00021369,2]
[370517358,1752052270315,-394.75,0.00021369,2]
[370517359,1752052270325,-642.88,0.00021369,2]
[370517360,1752052270334,-678.68,0.00021369,2]
[370517361,1752052270344,-460.0,0.00021369,2]
[370517362,1752052270353,-460.0,0.00021369,2]
[370517363,1752052270362,-2646.66,0.00021369,2]
[370517364,1752052270372,-460.0,0.00021369,2]
[370517365,1752052270381,-460.0,0.00021369,2]
[370517366,1752052270391,-460.0,0.00021369,2]
[370517367,1752052270400,-460.0,0.00021369,2]
[370517368,1752052270409,-460.0,0.00021369,2]
[370517369,1752052270418,-527.54231493,0.00021369,2]
[370517370,1752052270427,-3971.5,0.00021369,2]
[370517371,1752052270436,-460.0,0.00021369,2]
[370517372,1752052270446,-1034.69,0.00021369,2]
[370517373,1752052270456,-460.0,0.00021369,2]
[370517374,1752052270465,-460.0,0.00021369,2]
[370517375,1752052270476,-460.0,0.00021369,2]
[370517376,1752052270485,-460.0,0.00021369,2]
[370517377,1752052270496,-460.0,0.00021369,2]
[370517378,1752052270505,-460.0,0.00021369,2]
[370517379,1752052270514,-460.0,0.00021369,2]
[370517380,1752052270523,-439.92,0.00021369,2]
[370517381,1752052270532,-460.0,0.00021369,2]
[370517382,1752052270542,-460.0,0.00021369,2]
[370517383,1752052270551,-2147.31,0.00021369,2]
[370517384,1752052270561,-460.0,0.00021369,2]
[370517385,1752052270571,-460.0,0.00021369,2]
[370517386,1752052270581,-203.73513215,0.00021369,2]
[370517387,1752052270590,-430.35,0.00021369,2]
[370517388,1752052270600,-372.83651231,0.00021369,2]
[370517389,1752052270610,-795.62,0.00021369,2]
[370517390,1752052270619,-285.33,0.00021369,2]
[370517391,1752052270628,-460.0,0.00021369,2]
[370517392,1752052270637,-1114.13,0.00021369,2]
[370517393,1752052270646,-460.0,0.00021369,2]
[370517394,1752052270656,-880.91,0.00021369,2]
[370517395,1752052270665,-460.0,0.00021369,2]
[370517396,1752052270674,-2677.36,0.00021369,2]
[370517397,1752052270683,-362.54,0.00021369,2]
[370517398,1752052270693,-460.0,0.00021369,2]
[370517399,1752052270702,-4297.19,0.00021369,2]
[370517400,1752052270712,-460.0,0.00021369,2]
[370517401,1752052270721,-469.62,0.00021369,2]
[370517402,1752052270732,-460.0,0.00021369,2]
[370517403,1752052270741,-782.49,0.00021369,2]
[370517404,1752052270750,-460.0,0.00021369,2]
[370517405,1752052270759,-460.0,0.00021369,2]
[370517406,1752052270769,-460.0,0.00021369,2]
[370517407,1752052270779,-995.78,0.00021369,2]
[370517408,1752052270788,-547.82,0.00021369,2]
[370517409,1752052270798,-460.0,0.00021369,2]
[370517410,1752052270807,-206.92,0.00021369,2]
[370517411,1752052270817,-2366.11,0.00021369,2]
[370517412,1752052270826,-460.0,0.00021369,2]
[370517413,1752052270836,-1805.03,0.00021369,2]
[370517414,1752052270845,-503.56,0.00021369,2]
[370517415,1752052270855,-460.0,0.00021369,2]
[370517416,1752052270864,-286.58903439,0.00021369,2]
[370517417,1752052270874,-460.0,0.00021369,2]
[370517418,1752052270883,-460.0,0.00021369,2]
[370517419,1752052270892,-460.0,0.00021369,2]
[370517420,1752052270902,-904.73,0.00021369,2]
[370517421,1752052270911,-460.0,0.00021369,2]
[370517422,1752052270920,-460.0,0.00021369,2]
[370517423,1752052270930,-460.0,0.00021369,2]
[370517424,1752052270939,-528.0,0.00021384,2]
[370517425,1752052270949,-528.0,0.00021411,2]
[370517426,1752052270958,-1811.57111913,0.00021416,2]
[370517427,1752052270967,-528.0,0.00021438,2]
[370517428,1752052270976,-528.0,0.00021466,2]
[370517429,1752052270985,-500.0,0.00021479,2]
[370517430,1752052270995,-528.0,0.00021493,2]
[370517431,1752052271005,-528.0,0.00021521,2]
[370517432,1752052271015,-528.0,0.00021548,2]
[370517433,1752052271024,-168.825801,0.00021553,2]
[370517434,1752052271034,-825.68635741,0.00021555,5]
[370517435,1752052271043,-528.0,0.00021575,2]
[370517436,1752052271052,-528.0,0.00021603,2]
[370517437,1752052271061,-542.22373411,0.0002163,2]
[370517438,1752052271070,-460.0,0.00021643,2]
[370517439,1752052271079,-460.0,0.00021643,2]
[370517440,1752052271088,-460.0,0.00021643,2]
[370517441,1752052271097,-465.90116567,0.00021643,2]
[370517442,1752052271199,-460.0,0.00021643,2]
[370517443,1752052271218,-606.90409149,0.00021643,2]
[370517444,1752052271227,-458.0,0.00021643,2]
[370517445,1752052271238,-460.0,0.00021643,2]
[370517446,1752052271247,-260.1,0.00021643,2]
[370517447,1752052271256,-282.28,0.00021643,2]
[370517448,1752052271265,-730.28,0.00021643,2]
[370517449,1752052271275,-460.0,0.00021643,2]
[370517450,1752052271286,-460.0,0.00021643,2]
[370517451,1752052271298,-460.0,0.00021643,2]
[370517452,1752052271308,-281.991641,0.00021643,2]
[370517453,1752052271317,-460.0,0.00021643,2]
[370517454,1752052271327,-460.0,0.00021643,2]
[370517455,1752052271336,-305.6,0.00021643,2]
[370517456,1752052271345,-460.0,0.00021643,2]
[370517457,1752052271355,-460.0,0.00021643,2]
[370517458,1752052271364,-177.67129004,0.00021643,2]
[370517459,1752052271372,-460.0,0.00021643,2]
[370517460,1752052271382,-460.0,0.00021643,2]
[370517461,1752052271391,-460.0,0.00021643,2]
[370517462,1752052271400,-176.96,0.00021643,2]
[370517463,1752052271409,-278.94,0.00021643,2]
[370517464,1752052271418,-151.0,0.00021643,2]
[370517465,1752052271427,-714.83,0.00021643,2]
[370517466,1752052271436,-151.0,0.00021643,2]
[370517467,1752052271445,-710.02,0.00021643,2]
[370517468,1752052271454,-460.0,0.00021643,2]
[370517469,1752052271463,-460.0,0.00021643,2]
[370517470,1752052271473,-460.0,0.00021643,2]
[370517471,1752052271484,-335.42,0.00021643,2]
[370517472,1752052271493,-460.0,0.00021643,2]
[370517473,1752052271502,-460.0,0.00021643,2]
[370517474,1752052271511,-222.5,0.00021643,2]
[370517475,1752052271520,-460.0,0.00021643,2]
[370517476,1752052271530,-460.0,0.00021643,2]
[370517477,1752052271539,-460.0,0.00021643,2]
[370517478,1752052271548,-377.22,0.00021643,2]
[370517479,1752052271556,-4516.91,0.00021643,2]
[370517480,1752052271566,-460.0,0.00021643,2]
[370517481,1752052271575,-349.7749,0.00021643,2]
[370517482,1752052271584,-460.0,0.00021643,2]
[370517483,1752052271593,-154.87005517,0.00021643,2]
[370517484,1752052271603,-955.05,0.00021643,2]
[370517485,1752052271612,-460.0,0.00021643,2]
[370517486,1752052271621,-1203.3,0.00021643,2]
[370517487,1752052271630,-1089.2,0.00021643,2]
[370517488,1752052271639,-460.0,0.00021643,2]
[370517489,1752052271648,-460.0,0.00021643,2]
[370517490,1752052271658,-1991.73,0.00021643,2]
[370517491,1752052271667,-531.8,0.00021643,2]
[370517492,1752052271676,-642.88,0.00021643,2]
[370517493,1752052271686,-678.68,0.00021643,2]
[370517494,1752052271695,-460.0,0.00021643,2]
[370517495,1752052271705,-460.0,0.00021643,2]
[370517496,1752052271715,-2646.66,0.00021643,2]
[370517497,1752052271725,-460.0,0.00021643,2]
[370517498,1752052271735,-460.0,0.00021643,2]
[370517499,1752052271744,-460.0,0.00021643,2]
[370517500,1752052271754,-460.0,0.00021643,2]
[370517501,1752052271763,-528.47795553,0.00021643,2]
[370517502,1752052271773,-3971.5,0.00021643,2]
[370517503,1752052271783,-391.64,0.00021643,2]
[370517504,1752052271792,-1034.69,0.00021643,2]
[370517505,1752052271801,-460.0,0.00021643,2]
[370517506,1752052271810,-460.0,0.00021643,2]
[370517507,1752052271819,-460.0,0.00021643,2]
[370517508,1752052271828,-460.0,0.00021643,2]
[370517509,1752052271842,-460.0,0.00021643,2]
[370517510,1752052271852,-460.0,0.00021643,2]
[370517511,1752052271861,-460.0,0.00021643,2]
[370517512,1752052271870,-460.0,0.00021643,2]
[370517513,1752052271879,-460.0,0.00021643,2]
[370517514,1752052271889,-2147.31,0.00021643,2]
[370517515,1752052271898,-464.78,0.00021643,2]
[370517516,1752052271907,-460.0,0.00021643,2]
[370517517,1752052271918,-795.62,0.00021643,2]
[370517518,1752052271928,-151.0,0.00021643,2]
[370517519,1752052271937,-460.0,0.00021643,2]
[370517520,1752052271947,-1114.13,0.00021643,2]
[370517521,1752052271956,-151.0,0.00021643,2]
[370517522,1752052271966,-225.12,0.00021643,2]
[370517523,1752052271975,-880.91,0.00021643,2]
[370517524,1752052271985,-2677.36,0.00021643,2]
[370517525,1752052271995,-460.0,0.00021643,2]
[370517526,1752052272004,-4297.19,0.00021643,2]
[370517527,1752052272014,-460.0,0.00021643,2]
[370517528,1752052272023,-469.62,0.00021643,2]
[370517529,1752052272032,-460.0,0.00021643,2]
[370517530,1752052272042,-151.0,0.00021643,2]
[370517531,1752052272051,-782.49,0.00021643,2]
[370517532,1752052272060,-151.0,0.00021643,2]
[370517533,1752052272070,-460.0,0.00021643,2]
[370517534,1752052272079,-995.78,0.00021643,2]
[370517535,1752052272089,-547.82,0.00021643,2]
[370517536,1752052272098,-460.0,0.00021643,2]
[370517537,1752052272107,-2366.11,0.00021643,2]
[370517538,1752052272118,-1805.03,0.00021643,2]
[370517539,1752052272128,-460.0,0.00021643,2]
[370517540,1752052272137,-460.0,0.00021643,2]
[370517541,1752052272147,-460.0,0.00021643,2]
[370517542,1752052272156,-460.0,0.00021643,2]
[370517543,1752052272165,-904.73,0.00021643,2]
[370517544,1752052272175,-202.85,0.00021643,2]
[370517545,1752052272184,-456.32,0.00021643,2]
[370517546,1752052272193,-151.0,0.00021664,2]
[370517547,1752052272203,-151.0,0.00021664,2]
[370517548,1752052272212,-151.0,0.00021664,2]
[370517549,1752052272221,-151.0,0.00021664,2]
[370517550,1752052272231,-500.0,0.00021709,2]
[370517551,1752052272240,-603.29851163,0.0002172,2]
[370517552,1752052272249,-825.68635741,0.00021762,5]
[370517553,1752052272259,-587.0,0.00021838,2]
[370517554,1752052272268,-151.0,0.00021846,5]
[370517555,1752052272277,-258.533965,0.00021887,4]
[370517556,1752052272287,-2504.94,0.000219,2]
[370517557,1752052272296,-460.0,0.00021917,2]
[370517558,1752052272305,-460.0,0.00021917,2]
[370517559,1752052272315,-151.0,0.00021917,2]
[370517560,1752052272324,-460.0,0.00021917,2]
[370517561,1752052272333,-151.0,0.00021917,2]
[370517562,1752052272342,-151.0,0.00021917,2]
[370517563,1752052272352,-460.0,0.00021917,2]
[370517564,1752052272361,-460.0,0.00021917,2]
[370517565,1752052272370,-730.28,0.00021917,2]
[370517566,1752052272379,-460.0,0.00021917,2]
[370517567,1752052272388,-490.48,0.00021917,2]
[370517568,1752052272397,-460.0,0.00021917,2]
[370517569,1752052272407,-410.74,0.00021917,2]
[370517570,1752052272416,-460.0,0.00021917,2]
[370517571,1752052272426,-460.0,0.00021917,2]
[370517572,1752052272435,-460.0,0.00021917,2]
[370517573,1752052272444,-460.0,0.00021917,2]
[370517574,1752052272453,-714.83,0.00021917,2]
[370517575,1752052272464,-710.02,0.00021917,2]
[370517576,1752052272474,-356.05410086,0.00021917,2]
[370517577,1752052272484,-460.0,0.00021917,2]
[370517578,1752052272493,-460.0,0.00021917,2]
[370517579,1752052272503,-460.0,0.00021917,2]
[370517580,1752052272512,-579.7592567,0.00021917,2]
[370517581,1752052272521,-269.48,0.00021917,2]
[370517582,1752052272531,-460.0,0.00021917,2]
[370517583,1752052272540,-4516.91,0.00021917,2]
[370517584,1752052272549,-493.42,0.00021917,2]
[370517585,1752052272559,-955.05,0.00021917,2]
[370517586,1752052272568,-460.0,0.00021917,2]
[370517587,1752052272577,-1203.3,0.00021917,2]
[370517588,1752052272587,-1089.2,0.00021917,2]
[370517589,1752052272596,-460.0,0.00021917,2]
[370517590,1752052272606,-460.0,0.00021917,2]
[370517591,1752052272615,-1991.73,0.00021917,2]
[370517592,1752052272710,-531.8,0.00021917,2]
[370517593,1752052272720,-642.88,0.00021917,2]
[370517594,1752052272729,-678.68,0.00021917,2]
[370517595,1752052272738,-460.0,0.00021917,2]
[370517596,1752052272747,-460.0,0.00021917,2]
[370517597,1752052272756,-159.711564,0.00021917,2]
[370517598,1752052272766,-2646.66,0.00021917,2]
[370517599,1752052272775,-346.77,0.00021917,2]
[370517600,1752052272785,-460.0,0.00021917,2]
[370517601,1752052272794,-460.0,0.00021917,2]
[370517602,1752052272803,-460.0,0.00021917,2]
[370517603,1752052272812,-3971.5,0.00021917,2]
[370517604,1752052272821,-1034.69,0.00021917,2]
[370517605,1752052272831,-460.0,0.00021917,2]
[370517606,1752052272840,-460.0,0.00021917,2]
[370517607,1752052272850,-460.0,0.00021917,2]
[370517608,1752052272860,-226.94,0.00021917,2]
[370517609,1752052272870,-460.0,0.00021917,2]
[370517610,1752052272879,-460.0,0.00021917,2]
[370517611,1752052272888,-460.0,0.00021917,2]
[370517612,1752052272898,-460.0,0.00021917,2]
[370517613,1752052272908,-2147.31,0.00021917,2]
[370517614,1752052272917,-177.76912002,0.00021917,2]
[370517615,1752052272927,-795.62,0.00021917,2]
[370517616,1752052272936,-460.0,0.00021917,2]
[370517617,1752052272946,-1114.13,0.00021917,2]
[370517618,1752052272956,-880.91,0.00021917,2]
[370517619,1752052272966,-2677.36,0.00021917,2]
[370517620,1752052272975,-460.0,0.00021917,2]
[370517621,1752052272986,-4297.19,0.00021917,2]
[370517622,1752052272996,-460.0,0.00021917,2]
[370517623,1752052273005,-469.62,0.00021917,2]
[370517624,1752052273014,-460.0,0.00021917,2]
[370517625,1752052273023,-782.49,0.00021917,2]
[370517626,1752052273033,-460.0,0.00021917,2]
[370517627,1752052273043,-995.78,0.00021917,2]
[370517628,1752052273052,-547.82,0.00021917,2]
[370517629,1752052273062,-460.0,0.00021917,2]
[370517630,1752052273072,-2366.11,0.00021917,2]
[370517631,1752052273082,-1805.03,0.00021917,2]
[370517632,1752052273091,-386.26,0.00021917,2]
[370517633,1752052273101,-460.0,0.00021917,2]
[370517634,1752052273110,-460.0,0.00021917,2]
[370517635,1752052273119,-904.73,0.00021917,2]
[370517636,1752052273128,-151.0,0.00021918,2]
[370517637,1752052273137,-151.0,0.00021918,2]
[370517638,1752052273147,-151.0,0.00021918,2]
[370517639,1752052273157,-151.0,0.00021918,2]
[370517640,1752052273167,-151.0,0.00021918,2]
[370517641,1752052273176,-151.0,0.00021918,2]
[370517642,1752052273186,-500.0,0.00021918,2]
[370517643,1752052273195,-500.0,0.00021918,2]
[370517644,1752052273205,-500.0,0.00021918,2]
[370517645,1752052273214,-500.0,0.00021918,2]
[370517646,1752052273223,-500.0,0.00021918,2]
[370517647,1752052273234,-500.0,0.00021918,2]
[370517648,1752052273243,-500.0,0.00021918,2]
[370517649,1752052273251,-500.0,0.00021918,2]
[370517650,1752052273260,-403.28351542,0.00021918,2]
[370517651,1752052273270,-500.0,0.00021918,2]
[370517652,1752052273279,-500.0,0.00021918,2]
[370517653,1752052273288,-500.0,0.00021918,2]
[370517654,1752052273298,-500.0,0.00021918,2]
[370517655,1752052273307,-550.0,0.00021918,2]
[370517656,1752052273316,-825.68635741,0.00021969,6]
[370517657,1752052273325,-215.0738,0.00021989,2]
[370517658,1752052273334,-150.0,0.00022083,2]
[370517659,1752052273343,-800.0,0.00022107,2]
[370517660,1752052273352,-159.547108,0.0002211,2]
[370517661,1752052273362,-177.8250511,0.0002211,2]
[370517662,1752052273371,-159.547108,0.0002211,2]
[370517663,1752052273380,-177.5175056,0.0002211,2]
[370517664,1752052273389,-160.4414274,0.0002211,2]
[370517665,1752052273398,-800.0,0.00022129,2]
[370517666,1752052273407,-603.29851163,0.0002217,2]
[370517667,1752052273417,-825.68635741,0.00022176,6]
[370517668,1752052273426,-460.0,0.00022191,2]
[370517669,1752052273435,-460.0,0.00022191,2]
[370517670,1752052273444,-151.0,0.00022191,7]
[370517671,1752052273454,-280.16985111,0.00022191,2]
[370517672,1752052273463,-151.0,0.00022191,7]
[370517673,1752052273473,-151.0,0.00022191,7]
[370517674,1752052273482,-460.0,0.00022191,2]
[370517675,1752052273491,-730.28,0.00022191,2]
[370517676,1752052273501,-419.1,0.00022191,2]
[370517677,1752052273510,-460.0,0.00022191,2]
[370517678,1752052273520,-460.0,0.00022191,2]
[370517679,1752052273529,-460.0,0.00022191,2]
[370517680,1752052273538,-460.0,0.00022191,2]
[370517681,1752052273548,-460.0,0.00022191,2]
[370517682,1752052273557,-714.83,0.00022191,2]
[370517683,1752052273566,-710.02,0.00022191,2]
[370517684,1752052273575,-460.0,0.00022191,2]
[370517685,1752052273585,-460.0,0.00022191,2]
[370517686,1752052273594,-460.0,0.00022191,2]
[370517687,1752052273603,-460.0,0.00022191,2]
[370517688,1752052273613,-4516.91,0.00022191,2]
[370517689,1752052273622,-955.05,0.00022191,2]
[370517690,1752052273632,-460.0,0.00022191,2]
[370517691,1752052273641,-1203.3,0.00022191,2]
[370517692,1752052273651,-1089.2,0.00022191,2]
[370517693,1752052273660,-460.0,0.00022191,2]
[370517694,1752052273670,-460.0,0.00022191,2]
[370517695,1752052273680,-1991.73,0.00022191,2]
[370517696,1752052273691,-531.8,0.00022191,2]
[370517697,1752052273702,-642.88,0.00022191,2]
[370517698,1752052273712,-678.68,0.00022191,2]
[370517699,1752052273746,-460.0,0.00022191,2]
[370517700,1752052273762,-460.0,0.00022191,2]
[370517701,1752052273772,-2646.66,0.00022191,2]
[370517702,1752052273782,-460.0,0.00022191,2]
[370517703,1752052273793,-460.0,0.00022191,2]
[370517704,1752052273804,-255.19,0.00022191,2]
[370517705,1752052273814,-3971.5,0.00022191,2]
[370517706,1752052273824,-1034.69,0.00022191,2]
[370517707,1752052273834,-460.0,0.00022191,2]
[370517708,1752052273846,-460.0,0.00022191,2]
[370517709,1752052273855,-460.0,0.00022191,2]
[370517710,1752052273866,-460.0,0.00022191,2]
[370517711,1752052273875,-460.0,0.00022191,2]
[370517712,1752052273886,-460.0,0.00022191,2]
[370517713,1752052273895,-460.0,0.00022191,2]
[370517714,1752052273906,-2147.31,0.00022191,2]
[370517715,1752052273917,-795.62,0.00022191,2]
[370517716,1752052273926,-460.0,0.00022191,2]
[370517717,1752052273935,-1114.13,0.00022191,2]
[370517718,1752052273944,-880.91,0.00022191,2]
[370517719,1752052273954,-2677.36,0.00022191,2]
[370517720,1752052273964,-460.0,0.00022191,2]
[370517721,1752052273974,-4297.19,0.00022191,2]
[370517722,1752052273987,-460.0,0.00022191,2]
[370517723,1752052273996,-469.62,0.00022191,2]
[370517724,1752052274006,-460.0,0.00022191,2]
[370517725,1752052274015,-782.49,0.00022191,2]
[370517726,1752052274024,-460.0,0.00022191,2]
[370517727,1752052274033,-995.78,0.00022191,2]
[370517728,1752052274042,-547.82,0.00022191,2]
[370517729,1752052274051,-460.0,0.00022191,2]
[370517730,1752052274140,-2366.11,0.00022191,2]
[370517731,1752052274150,-1805.03,0.00022191,2]
[370517732,1752052274161,-460.0,0.00022191,2]
[370517733,1752052274171,-460.0,0.00022191,2]
[370517734,1752052274180,-904.73,0.00022191,2]
[370517735,1752052274190,-151.0,0.000222,8]
[370517736,1752052274199,-452.68375414,0.00022214,2]
[370517737,1752052274209,-800.0,0.00022238,2]
[370517738,1752052274219,-151.0,0.0002224,5]
[370517739,1752052274228,-967.0,0.00022371,2]
[370517740,1752052274241,-825.68635741,0.00022383,7]
[370517741,1752052274250,-646.0,0.00022421,2]
[370517742,1752052274260,-317.148,0.00022421,2]
[370517743,1752052274269,-408.797,0.00022421,2]
[370517744,1752052274279,-460.0,0.00022465,2]
[370517745,1752052274288,-151.0,0.00022465,7]
[370517746,1752052274297,-151.0,0.00022465,7]
[370517747,1752052274307,-460.0,0.00022465,2]
[370517748,1752052274316,-730.28,0.00022465,2]
[370517749,1752052274326,-460.0,0.00022465,2]
[370517750,1752052274335,-165.02,0.00022465,2]
[370517751,1752052274344,-460.0,0.00022465,2]
[370517752,1752052274354,-523.14,0.00022465,2]
[370517753,1752052274363,-460.0,0.00022465,2]
[370517754,1752052274372,-714.83,0.00022465,2]
[370517755,1752052274381,-710.02,0.00022465,2]
[370517756,1752052274390,-460.0,0.00022465,2]
[370517757,1752052274399,-460.0,0.00022465,2]
[370517758,1752052274409,-574.33070593,0.00022465,2]
[370517759,1752052274418,-4516.91,0.00022465,2]
[370517760,1752052274428,-460.0,0.00022465,2]
[370517761,1752052274438,-1203.3,0.00022465,2]
[370517762,1752052274447,-955.05,0.00022465,2]
[370517763,1752052274456,-1089.2,0.00022465,2]
[370517764,1752052274466,-151.0,0.00022465,7]
[370517765,1752052274475,-460.0,0.00022465,2]
[370517766,1752052274489,-1991.73,0.00022465,2]
[370517767,1752052274498,-531.8,0.00022465,2]
[370517768,1752052274508,-642.88,0.00022465,2]
[370517769,1752052274517,-678.68,0.00022465,2]
[370517770,1752052274527,-460.0,0.00022465,2]
[370517771,1752052274536,-310.81,0.00022465,2]
[370517772,1752052274546,-2646.66,0.00022465,2]
[370517773,1752052274556,-460.0,0.00022465,2]
[370517774,1752052274565,-3971.5,0.00022465,2]
[370517775,1752052274575,-1034.69,0.00022465,2]
[370517776,1752052274584,-460.0,0.00022465,2]
[370517777,1752052274593,-460.0,0.00022465,2]
[370517778,1752052274603,-191.56,0.00022465,2]
[370517779,1752052274614,-460.0,0.00022465,2]
[370517780,1752052274624,-460.0,0.00022465,2]
[370517781,1752052274633,-460.0,0.00022465,2]
[370517782,1752052274643,-460.0,0.00022465,2]
[370517783,1752052274653,-2147.31,0.00022465,2]
[370517784,1752052274663,-795.62,0.00022465,2]
[370517785,1752052274672,-460.0,0.00022465,2]
[370517786,1752052274682,-1114.13,0.00022465,2]
[370517787,1752052274691,-880.91,0.00022465,2]
[370517788,1752052274702,-2677.36,0.00022465,2]
[370517789,1752052274711,-530.66,0.00022465,2]
[370517790,1752052274722,-4297.19,0.00022465,2]
[370517791,1752052274733,-460.0,0.00022465,2]
[370517792,1752052274742,-469.62,0.00022465,2]
[370517793,1752052274751,-166.37384252,0.00022465,2]
[370517794,1752052274773,-782.49,0.00022465,2]
[370517795,1752052274792,-460.0,0.00022465,2]
[370517796,1752052274812,-995.78,0.00022465,2]
[370517797,1752052274832,-547.82,0.00022465,2]
[370517798,1752052274851,-460.0,0.00022465,2]
[370517799,1752052274869,-2366.11,0.00022465,2]
[370517800,1752052274888,-1805.03,0.00022465,2]
[370517801,1752052274902,-460.0,0.00022465,2]
[370517802,1752052274920,-498.9,0.00022465,2]
[370517803,1752052274941,-904.73,0.00022465,2]
[370517804,1752052274958,-543.36193864,0.00022543,5]
[370517805,1752052274976,-825.68635741,0.0002259,7]
[370517806,1752052274994,-151.0,0.000226,7]
[370517807,1752052275011,-603.29851163,0.00022621,2]
[370517808,1752052275024,-151.0,0.00022634,5]
[370517809,1752052275039,-7125.86,0.000227,7]
[370517810,1752052275054,-150.0,0.00022724,2]
[370517811,1752052275069,-150.0,0.00022724,2]
[370517812,1752052275083,-5041.80896311,0.00022739,2]
[370517813,1752052275099,-1371.18812642,0.00022739,2]
[370517814,1752052275113,-460.0,0.00022739,2]
[370517815,1752052275127,-460.0,0.00022739,2]
[370517816,1752052275143,-151.0,0.00022739,7]
[370517817,1752052275158,-730.28,0.00022739,2]
[370517818,1752052275173,-151.0,0.00022739,7]
[370517819,1752052275189,-460.0,0.00022739,2]
[370517820,1752052275203,-151.0,0.00022739,7]
[370517821,1752052275218,-151.0,0.00022739,7]
[370517822,1752052275234,-286.598758,0.00022739,7]
[370517823,1752052275249,-460.0,0.00022739,2]
[370517824,1752052275263,-460.0,0.00022739,2]
[370517825,1752052275279,-714.83,0.00022739,2]
[370517826,1752052275288,-710.02,0.00022739,2]
[370517827,1752052275297,-460.0,0.00022739,2]